[Event "Torneio Nacional Honour 2017-18"]
[Site "Cascais"]
[Date "2018.08.12"]
[Round "2"]
[White "Lavrador, Rodolfo M Mascarenh"]
[Black "Santos, Isabel"]
[Result "1/2-1/2"]
[ECO "B17"]
[WhiteElo "1859"]
[BlackElo "2005"]
[Annotator "NA"]
[PlyCount "113"]
[EventDate "2018.08.11"]
[EventType "tourn"]
[EventCountry "POR"]
[SourceTitle "playchess.com"]
[Source "ChessBase"]
[SourceQuality "1"]
[TimeControl "5400+30"]

1. e4 {[%emt 0:00:00]} c6 {[%emt 0:21:33]} 2. d4 {[%emt 0:00:08]} d5 {[%emt 0:00:06]} 3. Nc3 {[%emt 0:00:22]} dxe4 {[%emt 0:00:35]} 4. Nxe4 {[%emt 0:00:13]} Nd7 {[%emt 0:00:03]} 5. Nf3 {[%emt 0:00:53]} Ngf6 {[%emt 0:00:05]} 6. Nxf6+ {[%emt 0:01:32]} Nxf6 {[%emt 0:00:06]} 7. Bd3 {[%emt 0:01:06]} e6 {[%emt 0:00:40]} 8. O-O {[%emt 0:01:08]} c5 {[%emt 0:02:34]} 9. dxc5 {[%emt 0:03:48]} Bxc5 {[%emt 0:00:12]} 10. Qe2 {[%emt 0:00:35]} O-O {[%emt 0:02:00]} 11. Bg5 {[%emt 0:00:45]} Be7 {[%emt 0:10:11]} 12. Rad1 {[%emt 0:03:41]} Qa5 {[%emt 0:06:51]} 13. a3 {[%emt 0:02:18]} h6 {[%emt 0:00:22]} 14. Bc1 {[%emt 0:02:21]} Bd7 {[%emt 0:11:48]} 15. Ne5 {[%emt 0:05:39]} Rad8 {[%emt 0:05:47]} 16. Rfe1 {[%emt 0:08:57]} a6 {[%emt 0:02:24]} 17. c4 {[%emt 0:02:10]} Ba4 {[%emt 0:00:56]} 18. Rd2 {[%emt 0:10:29]} Nd7 {[%emt 0:04:08]} 19. Nxd7 {[%emt 0:05:25]} Rxd7 {[%emt 0:00:01]} 20. b4 {[%emt 0:01:58]} Qd8 {[%emt 0:01:18]} 21. Bb1 {[%emt 0:05:48]} Rxd2 {[%emt 0:02:04]} 22. Bxd2 {[%emt 0:00:30]} Qd4 {[%emt 0:00:30]} 23. Qe4 {[%emt 0:00:30]} Qxe4 {[%emt 0:03:03]} 24. Bxe4 {[%emt 0:07:37]} Rd8 {[%emt 0:00:47]} 25. Bc3 {[%emt 0:01:13]} Rd7 {[%emt 0:01:13]} 26. g3 {[%emt 0:03:09]} Bb3 {[%emt 0:02:05]} 27. c5 {[%emt 0:00:33]} a5 {[%emt 0:00:09]} 28. Kg2 {[%emt 0:01:33]} f5 {[%emt 0:01:49]} 29. Bf3 {[%emt 0:03:36]} Kf7 {[%emt 0:01:34]} 30. h4 {[%emt 0:03:01]} Bd5 {[%emt 0:04:32]} 31. Bxd5 {[%emt 0:01:31]} Rxd5 {[%emt 0:00:15]} 32. Re2 {[%emt 0:06:37]} Bf6 {[%emt 0:00:22]} 33. Rc2 {[%emt 0:02:54]} Bxc3 {[%emt 0:02:35]} 34. Rxc3 {[%emt 0:00:13]} axb4 {[%emt 0:01:54]} 35. axb4 {[%emt 0:00:10]} Ke7 {[%emt 0:02:33]} 36. Kf3 {[%emt 0:04:20]} g5 {[%emt 0:00:36]} 37. hxg5 {[%emt 0:00:39]} hxg5 {[%emt 0:00:04]} 38. Ke3 {[%emt 0:00:51]} e5 {[%emt 0:02:09]} 39. b5 {[%emt 0:03:52]} Kd7 {[%emt 0:02:22]} 40. Rd3 {[%emt 0:02:47]} Ke6 $1 {[%emt 0:00:02]} 41. Rc3 {[%emt 0:00:35]} Kd7 {[%emt 0:02:52]} 42. f3 {[%emt 0:01:55]} Kc7 $11 {[%emt 0:00:40]} 43. g4 {[%emt 0:00:27]} fxg4 {[%emt 0:00:45]} 44. fxg4 {[%emt 0:00:10]} Rd4 {[%emt 0:00:19]} 45. Kf3 {[%emt 0:00:31]} Rf4+ {[%emt 0:00:17]} 46. Kg3 {[%emt 0:00:14]} Rb4 {[%emt 0:00:21]} 47. Re3 {[%emt 0:01:20]} e4 {[%emt 0:00:25]} 48. b6+ {[%emt 0:00:25]} Kc6 {[%emt 0:00:05]} 49. Rc3 {[%emt 0:00:08]} Rd4 {[%emt 0:00:15]} 50. Kf2 {[%emt 0:00:27]} Rd5 {[%emt 0:01:56]} 51. Ke3 {[%emt 0:00:44]} Rd3+ {[%emt 0:01:20]} 52. Rxd3 {[%emt 0:00:06]} exd3 {[%emt 0:00:02]} 53. Kxd3 {[%emt 0:00:06]} Kxc5 {[%emt 0:00:09]} 54. Ke4 {[%emt 0:00:17]} Kxb6 {[%emt 0:00:14]} 55. Kf5 {[%emt 0:00:09]} Kc6 {[%emt 0:00:17]} 56. Kxg5 {[%emt 0:00:14]} b5 {[%emt 0:00:18]} 57. Kf4 {[%emt 0:00:51]} 1/2-1/2

[Event "Torneio Nacional Honour 2017-18"]
[Site "Cascais"]
[Date "2018.08.12"]
[Round "2"]
[White "Guia, Artur Solovyov Eloy"]
[Black "De Moura, Fernando Alves"]
[Result "1-0"]
[ECO "C61"]
[WhiteElo "1818"]
[BlackElo "1814"]
[Annotator "NA"]
[PlyCount "43"]
[EventDate "2018.08.11"]
[EventType "tourn"]
[EventCountry "POR"]
[SourceTitle "playchess.com"]
[Source "ChessBase"]
[SourceQuality "1"]
[TimeControl "5400+30"]

1. e4 {[%emt 0:00:00]} e5 {[%emt 0:00:00]} 2. Nf3 {[%emt 0:00:00]} Nc6 {[%emt 0:00:00]} 3. Bb5 {[%emt 0:00:00]} Nd4 {[%emt 0:00:02]} 4. Nxd4 {[%emt 0:00:07]} exd4 {[%emt 0:00:01]} 5. O-O {[%emt 0:00:24]} Qg5 {[%emt 0:05:37]} 6. Bc4 {[%emt 0:00:59]} Bc5 {[%emt 0:00:16]} 7. d3 {[%emt 0:01:56]} Qg6 {[%emt 0:00:19]} 8. Re1 {[%emt 0:02:37]} Ne7 {[%emt 0:02:51]} 9. f4 {[%emt 0:02:45]} d6 {[%emt 0:15:53]} 10. f5 {[%emt 0:04:29]} Qf6 {[%emt 0:06:20]} 11. Qg4 {[%emt 0:05:31]} h6 {[%emt 0:13:37]} 12. Qh5 {[%emt 0:04:29]} d5 {[%emt 0:06:29]} 13. Bxd5 {[%emt 0:00:34]} Nxd5 {[%emt 0:02:57]} 14. exd5+ {[%emt 0:00:51]} Be7 {[%emt 0:00:02]} 15. Bf4 {[%emt 0:03:02]} O-O {[%emt 0:10:34]} 16. Bxc7 {[%emt 0:01:07]} Bd6 {[%emt 0:05:07]} 17. Bxd6 {[%emt 0:01:45]} Qxd6 {[%emt 0:00:02]} 18. Qf3 {[%emt 0:03:02]} Qf6 {[%emt 0:04:03]} 19. Rf1 {[%emt 0:01:31]} Re8 {[%emt 0:02:03]} 20. Nd2 {[%emt 0:01:55]} Re5 {[%emt 0:05:17]} 21. Ne4 {[%emt 0:18:17]} Qxf5 {[%emt 0:01:54]} 22. Qg3 {[%emt 0:00:46]} 1-0

[Event "Torneio Nacional Honour 2017-18"]
[Site "Cascais"]
[Date "2018.08.12"]
[Round "2"]
[White "Goncalves, Carlos Manuel M"]
[Black "Sa, Claudio Simao Carva"]
[Result "0-1"]
[ECO "A04"]
[WhiteElo "1645"]
[BlackElo "1790"]
[Annotator "NA"]
[PlyCount "138"]
[EventDate "2018.08.11"]
[EventType "tourn"]
[EventCountry "POR"]
[SourceTitle "playchess.com"]
[Source "ChessBase"]
[SourceQuality "1"]
[TimeControl "5400+30"]

1. Nf3 {[%emt 0:00:00]} g6 {[%emt 0:01:31]} 2. g3 {[%emt 0:00:26]} Bg7 {[%emt 0:00:12]} 3. Bg2 {[%emt 0:00:10]} f5 {[%emt 0:00:27]} 4. d3 {[%emt 0:02:01]} Nf6 {[%emt 0:00:19]} 5. c3 {[%emt 0:00:20]} d6 {[%emt 0:00:18]} 6. Qb3 {[%emt 0:01:22]} e6 {[%emt 0:03:56]} 7. Ng5 {[%emt 0:07:50]} d5 {[%emt 0:02:07]} 8. c4 {[%emt 0:07:30]} c6 {[%emt 0:03:43]} 9. cxd5 {[%emt 0:01:30]} cxd5 {[%emt 0:00:41]} 10. O-O {[%emt 0:05:18]} O-O {[%emt 0:00:51]} 11. e4 {[%emt 0:02:07]} h6 {[%emt 0:06:05]} 12. Nh3 {[%emt 0:03:36]} Nc6 {[%emt 0:14:37]} 13. exd5 {[%emt 0:02:13]} Nd4 {[%emt 0:03:35]} 14. Qd1 {[%emt 0:01:59]} Nxd5 {[%emt 0:02:21]} 15. Nc3 {[%emt 0:01:13]} Nxc3 {[%emt 0:21:05]} 16. bxc3 {[%emt 0:01:25]} Nb5 {[%emt 0:02:28]} 17. Bb2 {[%emt 0:06:30]} Nxc3 {[%emt 0:05:36]} 18. Bxc3 {[%emt 0:00:23]} Bxc3 {[%emt 0:00:08]} 19. Rb1 {[%emt 0:01:52]} Rb8 {[%emt 0:00:23]} 20. Nf4 {[%emt 0:01:48]} Kh7 {[%emt 0:01:55]} 21. Qb3 {[%emt 0:03:49]} Bg7 {[%emt 0:03:27]} 22. Nxe6 {[%emt 0:00:49]} Bxe6 {[%emt 0:00:28]} 23. Qxe6 {[%emt 0:00:12]} Re8 {[%emt 0:01:23]} 24. Qd5 {[%emt 0:02:34]} b6 {[%emt 0:01:57]} 25. Qb5 {[%emt 0:04:10]} Re5 {[%emt 0:02:14]} 26. Qa6 {[%emt 0:01:30]} Ra5 {[%emt 0:01:03]} 27. Qc4 {[%emt 0:00:16]} Rc8 {[%emt 0:00:22]} 28. Qb3 {[%emt 0:00:44]} Rc3 {[%emt 0:00:33]} 29. Qf7 {[%emt 0:02:33]} Rxd3 {[%emt 0:00:28]} 30. Rbc1 {[%emt 0:00:27]} Rd7 {[%emt 0:00:33]} 31. Qe6 {[%emt 0:00:36]} Re7 {[%emt 0:01:42]} 32. Qb3 {[%emt 0:00:42]} Re2 {[%emt 0:05:19]} 33. Rfd1 {[%emt 0:01:26]} Qf8 {[%emt 0:05:11]} 34. Rd7 {[%emt 0:02:16]} Rc5 {[%emt 0:01:44]} 35. Rcd1 {[%emt 0:01:51]} Rce5 {[%emt 0:00:36]} 36. Rxa7 {[%emt 0:05:38]} Qc5 {[%emt 0:01:44]} 37. Rxg7+ {[%emt 0:01:27]} Kxg7 {[%emt 0:00:20]} 38. Rd7+ {[%emt 0:00:10]} Re7 {[%emt 0:00:19]} 39. Rxe7+ {[%emt 0:00:41]} Rxe7 {[%emt 0:00:02]} 40. Qf3 {[%emt 0:00:56]} Qc1+ {[%emt 0:01:35]} 41. Bf1 {[%emt 0:00:16]} Qc2 {[%emt 0:00:47]} 42. Qd5 {[%emt 0:01:44]} Qe4 {[%emt 0:00:34]} 43. Bc4 {[%emt 0:01:05]} Qxd5 {[%emt 0:00:46]} 44. Bxd5 {[%emt 0:00:02]} Kf6 {[%emt 0:00:12]} 45. Kg2 {[%emt 0:00:57]} Ke5 {[%emt 0:00:30]} 46. Bb3 {[%emt 0:00:30]} g5 {[%emt 0:00:30]} 47. Kf3 {[%emt 0:00:30]} Rc7 {[%emt 0:00:20]} 48. Ke3 {[%emt 0:00:50]} Rc3+ {[%emt 0:02:57]} 49. Kd2 {[%emt 0:00:08]} Rf3 {[%emt 0:00:43]} 50. Ke2 {[%emt 0:00:08]} g4 {[%emt 0:00:44]} 51. h3 {[%emt 0:00:42]} h5 {[%emt 0:00:35]} 52. Bf7 {[%emt 0:01:09]} Ra3 {[%emt 0:00:13]} 53. hxg4 {[%emt 0:00:15]} hxg4 {[%emt 0:00:01]} 54. Bb3 {[%emt 0:00:56]} Kd4 {[%emt 0:01:15]} 55. f3 {[%emt 0:01:47]} Ra5 {[%emt 0:00:57]} 56. fxg4 {[%emt 0:00:27]} fxg4 {[%emt 0:00:02]} 57. Kd2 {[%emt 0:00:41]} Rh5 {[%emt 0:00:58]} 58. Be6 {[%emt 0:00:47]} Rh2+ {[%emt 0:00:14]} 59. Kc1 Kc3 60. Bxg4 {[%emt 0:02:42]} Rxa2 {[%emt 0:00:40]} 61. Kd1 {[%emt 0:00:18]} Rg2 {[%emt 0:00:15]} 62. Ke1 {[%emt 0:00:51]} Rxg3 {[%emt 0:00:09]} 63. Bh5 {[%emt 0:00:09]} Rg2 {[%emt 0:00:16]} 64. Kf1 {[%emt 0:00:04]} Rb2 {[%emt 0:00:08]} 65. Bg6 {[%emt 0:00:46]} b5 {[%emt 0:00:11]} 66. Ke1 {[%emt 0:00:17]} b4 {[%emt 0:00:08]} 67. Kd1 {[%emt 0:00:11]} b3 {[%emt 0:00:08]} 68. Kc1 {[%emt 0:00:20]} Rg2 {[%emt 0:00:08]} 69. Kd1 Rxg6 0-1

[Event "Torneio Nacional Honour 2017-18"]
[Site "Cascais"]
[Date "2018.08.12"]
[Round "3"]
[White "Santos, Isabel"]
[Black "Goncalves, Carlos Manuel M"]
[Result "1-0"]
[ECO "E91"]
[WhiteElo "2005"]
[BlackElo "1645"]
[Annotator "NA RC"]
[PlyCount "69"]
[EventDate "2018.08.11"]
[EventType "tourn"]
[EventCountry "POR"]
[SourceTitle "playchess.com"]
[Source "ChessBase"]
[SourceQuality "1"]
[TimeControl "5400+30"]

1. d4 {[%emt 0:00:00]} Nf6 {[%emt 0:00:00]} 2. Nf3 {[%emt 0:00:22]} g6 {[%emt 0:00:18]} 3. c4 {[%emt 0:00:08]} Bg7 {[%emt 0:00:20]} 4. Nc3 {[%emt 0:00:05]} O-O {[%emt 0:00:17] LiveBook: 11880 Games} 5. e4 {[%emt 0:00:07]} d6 {[%emt 0:00:08]} 6. Be2 {[%emt 0:00:04]} Nbd7 {[%emt 0:00:56]} 7. O-O {[%emt 0:00:31]} c6 {[%emt 0:00:06]} 8. Be3 {[%emt 0:01:32]} a5 {[%emt 0:00:56] E91: King's Indian: Classical: 6 Be2, unusual replies including 6...c5 and 6...Bg4} (8... e5 9. d5 c5 10. Bg5 h6 11. Bd2 Ne8 12. Qc1 Kh7 13. g3 Ndf6 14. Nh4 Bd7 15. a3 Ng8 16. b4 Ne7 17. Rb1 b6 {1-0 (43) Can,E (2561)-Onischuk,V (2601) Budapest 2017}) 9. a3 {[%emt 0:04:01]} Re8 $146 {[%emt 0:01:30]} ({Predecessor:} 9... e5 10. d5 c5 11. Qc2 Ne8 12. b4 f5 13. exf5 gxf5 14. Ng5 axb4 15. Ne6 Qe7 16. Nxf8 Qxf8 17. axb4 Rxa1 18. Rxa1 cxb4 {1-0 (41) Kiviaho,A (2202)-Munukka,T (1993) Helsinki 2005}) 10. b4 {[%emt 0:01:09]} e5 {[%emt 0:02:06]} 11. d5 {[%emt 0:04:33]} Ng4 {[%emt 0:00:57]} 12. Bg5 {[%emt 0:01:49]} f6 {[%emt 0:01:13]} 13. Bh4 {[%emt 0:00:09]} g5 {[%emt 0:00:26]} 14. Bg3 {[%emt 0:00:21]} axb4 {[%emt 0:00:10]} 15. axb4 {[%emt 0:02:31]} Rxa1 {[%emt 0:00:13]} 16. Qxa1 {[%emt 0:00:17]} f5 {[%emt 0:09:31]} 17. Nd2 {[%emt 0:04:00]} f4 {[%emt 0:03:47]} 18. Bxg4 {[%emt 0:00:18]} fxg3 {[%emt 0:00:13]} 19. fxg3 {[%emt 0:00:16]} Qb6+ {[%emt 0:01:32]} 20. Kh1 $16 {[%emt 0:00:34]} Qxb4 {[%emt 0:01:23]} 21. Rb1 {[%emt 0:03:43]} Qc5 {[%emt 0:00:13]} 22. Bxd7 {[%emt 0:00:12]} Bxd7 {[%emt 0:00:11]} 23. Rxb7 {[%emt 0:00:05]} Bg4 {[%emt 0:01:57]} 24. h3 {[%emt 0:04:16]} Bh5 {[%emt 0:00:12]} 25. Qa7 {[%emt 0:02:19]} Qxa7 {[%emt 0:00:09]} 26. Rxa7 {[%emt 0:00:02]} cxd5 {[%emt 0:00:22]} 27. exd5 {[%emt 0:00:37]} Rf8 {[%emt 0:02:10]} 28. Nce4 {[%emt 0:01:15]} g4 {[%emt 0:00:42]} 29. Nxd6 {[%emt 0:01:44]} gxh3 {[%emt 0:00:19]} 30. gxh3 {[%emt 0:00:37]} Rf2 {[%emt 0:01:36]} 31. Ra8+ {[%emt 0:01:01]} Bf8 {[%emt 0:00:12]} 32. N6e4 {[%emt 0:00:12]} Bf3+ {[%emt 0:01:50]} 33. Nxf3 {[%emt 0:00:26]} Rxf3 {[%emt 0:00:19]} 34. d6 {[%emt 0:02:52]} Rd3 {[%emt 0:00:38]} 35. d7 {[%emt 0:00:13]} 1-0

[Event "Torneio Nacional Honour 2017-18"]
[Site "Cascais"]
[Date "2018.08.12"]
[Round "3"]
[White "Godinho Marques, Pedro"]
[Black "Guia, Artur Solovyov Eloy"]
[Result "1/2-1/2"]
[ECO "D00"]
[WhiteElo "1862"]
[BlackElo "1818"]
[Annotator "NA RC"]
[PlyCount "44"]
[EventDate "2018.08.11"]
[EventType "tourn"]
[EventCountry "POR"]
[SourceTitle "playchess.com"]
[Source "ChessBase"]
[SourceQuality "1"]
[TimeControl "5400+30"]

1. d4 {[%emt 0:00:00]} d5 {[%emt 0:00:05]} 2. Bf4 {[%emt 0:00:08]} Nf6 {[%emt 0:00:07]} 3. e3 {[%emt 0:00:50]} e6 {[%emt 0:00:08]} 4. Nf3 {[%emt 0:00:46]} c5 {[%emt 0:00:06]} 5. c3 {[%emt 0:07:28]} Nc6 {[%emt 0:00:16]} 6. Bd3 {[%emt 0:00:58]} Bd6 {[%emt 0:00:08]} 7. Ne5 {[%emt 0:07:24] D02: 1 d4 d5 2 Nf3 sidelines, including 2...Nf6 3 g3 and 2...Nf6 3 Bf4} (7. Bg3 O-O 8. Nbd2 b6 9. Ne5 Bb7 10. f4 Ne7 11. Qb1 g6 12. Bh4 Nf5 13. Bf2 Bxe5 14. fxe5 Ng4 15. Bxf5 exf5 16. Nf3 f6 17. h3 Nxf2 18. Kxf2 fxe5 19. Nxe5 {0-1 (48) Nagle,S (2432)-Ludwig,J (2388) chess.com INT 2018}) 7... Bxe5 {[%emt 0:00:20]} 8. Bxe5 {[%emt 0:02:22]} Nxe5 {[%emt 0:00:07]} 9. dxe5 {[%emt 0:00:06]} Nd7 {[%emt 0:00:09]} 10. f4 {[%emt 0:03:41]} c4 {[%emt 0:00:34]} 11. Bc2 {[%emt 0:04:00]} Qb6 {[%emt 0:00:08]} 12. Qc1 {[%emt 0:01:07]} Nc5 {[%emt 0:01:06]} 13. O-O {[%emt 0:00:40]} Bd7 {[%emt 0:00:12]} 14. Kh1 $146 {[%emt 0:04:57]} ({Predecessor:} 14. Na3 Ba4 {½-½ (25) Kiseleva,A (1877)-Belenkaya,D (2028) St Petersburg 2009}) 14... Ba4 {[%emt 0:00:20]} 15. Bxa4+ {[%emt 0:09:02]} Nxa4 {[%emt 0:00:12]} 16. b3 {[%emt 0:08:54]} cxb3 {[%emt 0:03:50]} 17. axb3 {[%emt 0:00:14]} Nc5 {[%emt 0:01:07]} 18. Ra3 {[%emt 0:18:04]} O-O {[%emt 0:07:01]} 19. Qc2 {[%emt 0:05:44]} Ne4 $17 {[%emt 0:00:39]} 20. Qd3 {[%emt 0:00:14]} Nc5 {[%emt 0:00:18]} 21. Qc2 {[%emt 0:03:22]} Ne4 {[%emt 0:00:07]} 22. Qd3 {[%emt 0:00:09]} Nc5 {[%emt 0:00:06]} 1/2-1/2

[Event "Torneio Nacional Honour 2017-18"]
[Site "Cascais"]
[Date "2018.08.12"]
[Round "3"]
[White "De Moura, Fernando Alves"]
[Black "Horta, Antonio Mauricio Ri"]
[Result "0-1"]
[ECO "B00"]
[WhiteElo "1814"]
[BlackElo "1950"]
[Annotator "NA RC"]
[PlyCount "86"]
[EventDate "2018.08.11"]
[EventType "tourn"]
[EventCountry "POR"]
[SourceTitle "playchess.com"]
[Source "ChessBase"]
[SourceQuality "1"]
[TimeControl "5400+30"]

1. e4 {[%emt 0:00:00]} d6 {[%emt 0:00:00]} 2. d4 {[%emt 0:00:00]} Nf6 {[%emt 0:00:00]} 3. Bd3 {[%emt 0:01:12]} e5 {[%emt 0:01:00]} 4. c3 {[%emt 0:01:12]} Be7 {[%emt 0:04:04]} 5. Nd2 {[%emt 0:02:11] B07: Pirc Defence: Miscellaneous Systems} (5. Nf3 Nbd7 6. O-O O-O 7. Re1 Re8 8. Nbd2 Bf8 9. Nf1 b6 10. Ng3 Bb7 11. h3 g6 12. Bg5 h6 13. Bd2 Bg7 14. Qc2 Rc8 15. Rad1 exd4 16. cxd4 {0-1 (85) Alekseev,E (2616)-Khismatullin,D (2632) Riadh 2017}) 5... O-O {[%emt 0:00:09]} 6. Ndf3 {[%emt 0:01:18]} Nbd7 {[%emt 0:05:29]} 7. h3 $146 {[%emt 0:02:44]} ({Predecessor:} 7. Ne2 d5 8. Ng3 dxe4 9. Nxe4 Nxe4 10. Bxe4 Nf6 11. Bc2 exd4 12. Qxd4 Bg4 {0-1 (34) Choong,M (1885)-Turikov,V (2270) Rijeka 2011}) 7... Re8 {[%emt 0:05:51]} 8. Ne2 {[%emt 0:04:48]} Nf8 {[%emt 0:08:02]} 9. Be3 {[%emt 0:03:53]} Ng6 {[%emt 0:01:34]} 10. Qc2 {[%emt 0:02:38]} Bf8 {[%emt 0:11:13]} 11. O-O-O {[%emt 0:05:18]} Qe7 {[%emt 0:00:10]} 12. Ng3 {[%emt 0:04:22]} Nf4 {[%emt 0:01:12]} 13. Bxf4 {[%emt 0:16:02]} exf4 {[%emt 0:00:02]} 14. Ne2 {[%emt 0:00:02]} Nxe4 {[%emt 0:05:07]} 15. Nxf4 {[%emt 0:03:57]} c6 {[%emt 0:01:37]} 16. Rhf1 {[%emt 0:06:00]} (16. Rhe1 $11 f5 17. d5) 16... g6 {[%emt 0:04:11]} 17. Kb1 {[%emt 0:06:08]} Bh6 {[%emt 0:08:04]} 18. Ne2 {[%emt 0:00:47]} Ng5 {[%emt 0:08:17]} 19. Neg1 {[%emt 0:01:44]} Ne6 {[%emt 0:00:17]} 20. Rfe1 {[%emt 0:01:36]} Qf6 {[%emt 0:00:58]} 21. Ne2 {[%emt 0:01:11]} Nc7 {[%emt 0:09:19]} 22. Ka1 {[%emt 0:04:00]} Be6 {[%emt 0:00:55]} 23. Ng3 {[%emt 0:00:54]} Nd5 {[%emt 0:00:58]} 24. Bf1 {[%emt 0:04:14]} Qd8 {[%emt 0:00:18]} 25. Nd2 {[%emt 0:03:47]} b5 {[%emt 0:00:26]} 26. Be2 {[%emt 0:05:30]} Qa5 {[%emt 0:00:57]} 27. Nb3 {[%emt 0:03:53]} Qc7 {[%emt 0:01:14]} 28. Bd3 {[%emt 0:05:50]} a5 {[%emt 0:00:11]} 29. Ne4 {[%emt 0:01:06]} a4 {[%emt 0:04:14]} 30. Nbd2 {[%emt 0:01:30]} b4 $2 {[%emt 0:02:54]} ({Black should try} 30... f5 $19 31. Ng3 Nf4) 31. a3 $2 {[%emt 0:03:38]} (31. c4 $17 {is a better defense.} b3 32. Qc1) 31... bxa3 {[%emt 0:00:49]} 32. bxa3 {[%emt 0:00:04]} Reb8 {[%emt 0:00:23]} 33. Rb1 {[%emt 0:00:19]} Bg7 {[%emt 0:03:44]} 34. Rxb8+ {[%emt 0:02:11]} Rxb8 {[%emt 0:00:32]} 35. Rb1 {[%emt 0:00:16]} Rxb1+ {[%emt 0:01:14]} 36. Kxb1 {[%emt 0:00:43]} Nb6 {[%emt 0:09:58]} ({Keinesfalls} 36... f5 37. Ng5 $15) ({Günstiger ist} 36... Nf4 $19 37. Bf1 d5) 37. f3 {[%emt 0:00:48]} c5 {[%emt 0:00:00]} 38. dxc5 {[%emt 0:01:25]} dxc5 {[%emt 0:00:02]} 39. c4 {[%emt 0:00:52]} Qe5 {[%emt 0:00:05]} 40. Kc1 {[%emt 0:00:54]} f5 {[%emt 0:00:03]} 41. Nf2 $2 {[%emt 0:00:40]} (41. Ng5) 41... Qe1+ {[%emt 0:00:17]} 42. Nd1 {[%emt 0:00:15]} Bh6 {[%emt 0:00:03]} 43. Bf1 $19 {[%emt 0:00:53]} (43. Qc3) 43... Qxf1 {[%emt 0:00:34]} 0-1

[Event "Torneio Nacional Honour 2017-18"]
[Site "Cascais"]
[Date "2018.08.12"]
[Round "3"]
[White "Sa, Claudio Simao Carva"]
[Black "Santos, Jose Barria"]
[Result "0-1"]
[ECO "B23"]
[WhiteElo "1790"]
[BlackElo "2062"]
[Annotator "NA RC"]
[PlyCount "68"]
[EventDate "2018.08.11"]
[EventType "tourn"]
[EventCountry "POR"]
[SourceTitle "playchess.com"]
[Source "ChessBase"]
[SourceQuality "1"]
[TimeControl "5400+30"]

1. e4 {[%emt 0:00:00]} c5 {[%emt 0:00:00]} 2. Nc3 {[%emt 0:00:00]} d6 {[%emt 0:00:01]} 3. f4 {[%emt 0:00:20]} g6 {[%emt 0:00:14]} 4. Nf3 {[%emt 0:00:18]} Bg7 {[%emt 0:00:05]} 5. Bb5+ {[%emt 0:00:07]} Bd7 {[%emt 0:00:21] LiveBook: 298 Games} 6. Bxd7+ {[%emt 0:00:09]} Nxd7 {[%emt 0:01:32] B23: Closed Sicilian: Lines without g3} (6... Qxd7 7. O-O Nc6 8. d3 e6 9. f5 Nge7 10. fxe6 fxe6 11. Ng5 Ne5 12. Nb5 Qxb5 13. Nxe6 Kd7 14. Nxg7 h5 15. a4 Qb6 16. a5 Qb5 {1-0 (28) Nisipeanu,L (2654)-So,W (2778) Dortmund 2015 CBM 167 [Ramirez Alvarez,Alejandro]}) 7. d3 {[%emt 0:00:10]} e6 {[%emt 0:00:32]} 8. O-O {[%emt 0:01:57]} Ne7 {[%emt 0:01:18]} 9. Qe1 {[%emt 0:00:55]} O-O {[%emt 0:01:14]} 10. Qh4 {[%emt 0:00:52]} Re8 $146 {[%emt 0:10:12]} ({Predecessor:} 10... Nc6 11. Qh3 Nd4 {0-1 (26) Bagvilas,L (1740)-Koliasnikovas,A (1571) Vilnius 2017}) 11. g4 {[%emt 0:15:06]} Nc6 {[%emt 0:10:39]} 12. Nb5 {[%emt 0:20:50]} Nf8 {[%emt 0:04:55]} 13. f5 {[%emt 0:09:22]} a6 {[%emt 0:03:49]} 14. Na3 {[%emt 0:02:50]} Qxh4 {[%emt 0:07:32]} 15. Nxh4 {[%emt 0:01:28] [#]} exf5 $1 {[%emt 0:02:10]} 16. gxf5 {[%emt 0:00:32]} b5 {[%emt 0:02:39]} 17. c3 $17 {[%emt 0:01:41]} Ne5 {[%emt 0:09:19]} 18. Rd1 {[%emt 0:10:15]} Bf6 {[%emt 0:07:57]} 19. Ng2 {[%emt 0:01:42]} gxf5 {[%emt 0:00:05]} 20. exf5 {[%emt 0:02:22]} Nf3+ {[%emt 0:11:39]} 21. Kf2 {[%emt 0:03:19]} Nh4 {[%emt 0:00:05]} 22. Nxh4 {[%emt 0:00:51]} Bxh4+ {[%emt 0:00:06]} 23. Kf3 {[%emt 0:00:14]} Nd7 {[%emt 0:05:09]} 24. Rg1+ {[%emt 0:01:43]} Kh8 {[%emt 0:00:28]} 25. Bf4 {[%emt 0:01:06]} Ne5+ {[%emt 0:00:19]} 26. Bxe5+ {[%emt 0:00:57]} Rxe5 {[%emt 0:00:28]} 27. Kg4 {[%emt 0:01:30]} Bf2 {[%emt 0:01:23]} 28. Rgf1 {[%emt 0:03:22]} Rg8+ {[%emt 0:00:08]} 29. Kf4 {[%emt 0:01:20]} Be3+ {[%emt 0:00:54]} 30. Kf3 {[%emt 0:00:11]} Bh6 {[%emt 0:00:35]} 31. Rae1 {[%emt 0:01:38]} Rxf5+ {[%emt 0:00:15]} 32. Ke2 {[%emt 0:00:23]} Rg2+ {[%emt 0:00:19]} 33. Kd1 {[%emt 0:00:25]} Rd2+ {[%emt 0:00:05]} 34. Kc1 {[%emt 0:00:17]} Rxf1 {[%emt 0:00:07]} 0-1

[Event "Torneio Nacional Honour 2017-18"]
[Site "Cascais"]
[Date "2018.08.12"]
[Round "3"]
[White "Santos, Ruben Jose Melo"]
[Black "Lavrador, Rodolfo M Mascarenh"]
[Result "0-1"]
[ECO "A00"]
[WhiteElo "1718"]
[BlackElo "1859"]
[Annotator "NA RC"]
[PlyCount "52"]
[EventDate "2018.08.11"]
[EventType "tourn"]
[EventCountry "POR"]
[SourceTitle "playchess.com"]
[Source "ChessBase"]
[SourceQuality "1"]
[TimeControl "5400+30"]

1. a3 {[%emt 0:00:00]} e5 {[%emt 0:00:00]} 2. e3 {[%emt 0:00:00]} d5 {[%emt 0:01:46]} 3. d4 {[%emt 0:00:05]} e4 {[%emt 0:01:45] A00: Irregular Openings} (3... Nd7 4. c4 exd4 5. exd4 Ngf6 6. Nf3 Be7 7. Nc3 O-O 8. Bd3 dxc4 9. Bxc4 Nb6 10. Ba2 Bg4 11. O-O Bxf3 12. Qxf3 {0-1 (44) Cubas,J (2438)-Bordonada,G (2385) ICC INT 2009}) 4. c4 {[%emt 0:00:09]} c6 {[%emt 0:00:08]} 5. Nc3 {[%emt 0:00:02]} Nf6 {[%emt 0:00:26]} 6. Qb3 {[%emt 0:00:03]} Be7 {[%emt 0:02:20]} 7. cxd5 {[%emt 0:00:07]} cxd5 {[%emt 0:00:29]} 8. Bd2 $146 {[%emt 0:00:03]} ({Predecessor:} 8. Nge2 Na6 9. Nf4 Nc7 10. Be2 Bd6 11. Bd2 Bxf4 12. exf4 {0-1 (42) Warner,D (2175)-Szmetan,R (2264) Merida 2001}) 8... O-O {[%emt 0:00:37]} 9. Nge2 {[%emt 0:00:04]} Nc6 {[%emt 0:00:47]} 10. Nf4 {[%emt 0:00:29]} Na5 {[%emt 0:01:25]} 11. Qa2 {[%emt 0:04:20]} Be6 {[%emt 0:02:01]} 12. b4 {[%emt 0:00:16]} Nc6 {[%emt 0:01:20]} 13. Be2 {[%emt 0:00:49]} Rc8 {[%emt 0:00:50]} 14. f3 {[%emt 0:01:13]} Bd6 {[%emt 0:06:31]} 15. Nxe6 {[%emt 0:01:46]} fxe6 {[%emt 0:00:35]} 16. fxe4 {[%emt 0:00:47]} Nxe4 {[%emt 0:01:23]} 17. Nxe4 {[%emt 0:00:32]} Qh4+ {[%emt 0:00:29]} 18. Ng3 {[%emt 0:10:17]} Bxg3+ {[%emt 0:01:02]} 19. Kd1 {[%emt 0:00:03]} Bd6 $19 {[%emt 0:02:17]} 20. Bf3 {[%emt 0:07:14]} Rxf3 {[%emt 0:01:03]} 21. gxf3 {[%emt 0:00:16]} Qf2 {[%emt 0:00:25]} 22. Re1 {[%emt 0:00:49]} Qxf3+ {[%emt 0:00:30]} 23. Re2 {[%emt 0:00:04]} Bxh2 {[%emt 0:01:53]} 24. b5 {[%emt 0:02:10]} Ne7 {[%emt 0:01:05]} 25. Bb4 {[%emt 0:01:45]} Nf5 {[%emt 0:00:38]} 26. Ke1 {[%emt 0:06:07]} Bg1 {[%emt 0:03:30]} 0-1